[Event "*** Titled Tuesday Blitz"]
[Site "Chess.com"]
[Date "2021.03.30"]
[Round "8"]
[White "Mikhail_Golubev"]
[Black "ChessQueen"]
[Result "0-1"]
[WhiteElo "2548"]
[BlackElo "2713"]
[TimeControl "180+1"]
[EndTime "11:29:14 PDT"]
[Termination "ChessQueen won by resignation"]

1. e4 {[%clk 0:02:55.7]} 1... c6 {[%clk 0:02:59.5]} 2. d4 {[%clk 0:02:55.1]}
2... d5 {[%clk 0:02:59.8]} 3. Nc3 {[%clk 0:02:55.4]} 3... dxe4 {[%clk
0:03:00.2]} 4. Nxe4 {[%clk 0:02:55.4]} 4... Nf6 {[%clk 0:03:00.2]} 5. Nxf6+
{[%clk 0:02:55.1]} 5... exf6 {[%clk 0:03:00.9]} 6. c3 {[%clk 0:02:53.5]} 6...
Bd6 {[%clk 0:03:01.1]} 7. Bd3 {[%clk 0:02:54.1]} 7... Na6 {[%clk 0:02:59.5]} 8.
Ne2 {[%clk 0:02:51.2]} 8... Nc7 {[%clk 0:02:57.3]} 9. Qc2 {[%clk 0:02:47]} 9...
h5 {[%clk 0:02:53.1]} 10. Bf4 {[%clk 0:02:44.6]} 10... Kf8 {[%clk 0:02:47.5]}
11. Qd2 {[%clk 0:02:29.5]} 11... Be6 {[%clk 0:02:40]} 12. Bxd6+ {[%clk
0:02:25.6]} 12... Qxd6 {[%clk 0:02:39.9]} 13. Qf4 {[%clk 0:02:13.5]} 13... Rd8
{[%clk 0:02:27.7]} 14. Qxd6+ {[%clk 0:02:06.4]} 14... Rxd6 {[%clk 0:02:28.6]}
15. O-O-O {[%clk 0:02:03.1]} 15... Bxa2 {[%clk 0:02:19.2]} 16. Kc2 {[%clk
0:01:52.9]} 16... Be6 {[%clk 0:02:18.4]} 17. h4 {[%clk 0:01:48.5]} 17... g6
{[%clk 0:02:16.9]} 18. Nf4 {[%clk 0:01:44.6]} 18... Kg7 {[%clk 0:02:12.8]} 19.
Rhe1 {[%clk 0:01:41.4]} 19... Rhd8 {[%clk 0:02:10.5]} 20. Ra1 {[%clk 0:01:36.7]}
20... a6 {[%clk 0:02:09.5]} 21. Rad1 {[%clk 0:01:35.6]} 21... a5 {[%clk
0:02:01.4]} 22. Ra1 {[%clk 0:01:24.1]} 22... b6 {[%clk 0:02:01.7]} 23. Be4
{[%clk 0:01:17.4]} 23... Ra8 {[%clk 0:01:45.2]} 24. Kc1 {[%clk 0:00:41.5]} 24...
a4 {[%clk 0:01:34.9]} 25. Bc2 {[%clk 0:00:40.1]} 25... b5 {[%clk 0:01:31.3]} 26.
Nd3 {[%clk 0:00:39.6]} 26... Re8 {[%clk 0:01:11.6]} 27. Nc5 {[%clk 0:00:30.4]}
27... Rdd8 {[%clk 0:01:11.3]} 28. Kd2 {[%clk 0:00:29.7]} 28... Bd5 {[%clk
0:01:09.9]} 29. g3 {[%clk 0:00:29.7]} 29... Ne6 {[%clk 0:01:07.9]} 30. Nb7
{[%clk 0:00:25.3]} 30... Rb8 {[%clk 0:01:00.5]} 31. Nd6 {[%clk 0:00:25.2]} 31...
Red8 {[%clk 0:00:58.3]} 32. Ne4 {[%clk 0:00:25.3]} 32... Bc4 {[%clk 0:00:43.8]}
33. Ke3 {[%clk 0:00:22.3]} 33... Rd5 {[%clk 0:00:41]} 34. Nd2 {[%clk 0:00:20.5]}
34... c5 {[%clk 0:00:41.5]} 35. Nxc4 {[%clk 0:00:19.7]} 35... cxd4+ {[%clk
0:00:41]} 36. cxd4 {[%clk 0:00:18.9]} 36... bxc4 {[%clk 0:00:41.1]} 37. Rxa4
{[%clk 0:00:18.9]} 37... Rxd4 {[%clk 0:00:37.6]} 38. b3 {[%clk 0:00:16.3]} 38...
cxb3 {[%clk 0:00:34.8]} 39. Rxd4 {[%clk 0:00:14.9]} 39... Nxd4 {[%clk
0:00:35.2]} 40. Kxd4 {[%clk 0:00:15]} 40... bxc2 {[%clk 0:00:35.8]} 41. Rc1
{[%clk 0:00:15]} 41... Rc8 {[%clk 0:00:36]} 42. Kd3 {[%clk 0:00:14.9]} 42... g5
{[%clk 0:00:34.5]} 43. Rxc2 {[%clk 0:00:12.3]} 43... Rxc2 {[%clk 0:00:33]} 44.
Kxc2 {[%clk 0:00:12.3]} 44... Kg6 {[%clk 0:00:33.7]} 45. Kd3 {[%clk 0:00:10.2]}
45... Kf5 {[%clk 0:00:34.2]} 46. Ke3 {[%clk 0:00:07.6]} 46... gxh4 {[%clk
0:00:32.3]} 47. gxh4 {[%clk 0:00:07.6]} 47... Kg4 {[%clk 0:00:32.2]} 48. Ke4
{[%clk 0:00:07.4]} 48... Kxh4 {[%clk 0:00:30.2]} 49. Kf4 {[%clk 0:00:07]} 49...
Kh3 {[%clk 0:00:30.1]} 50. Kf5 {[%clk 0:00:04.7]} 50... h4 {[%clk 0:00:29.7]}
51. Kxf6 {[%clk 0:00:02.2]} 51... Kg4 {[%clk 0:00:29.9]} 0-1

[Event "*** Titled Tuesday Blitz"]
[Site "Chess.com"]
[Date "2021.03.30"]
[Round "8"]
[White "VladimirBugayev"]
[Black "Nachsueb"]
[Result "0-1"]
[WhiteElo "2274"]
[BlackElo "2174"]
[TimeControl "180+1"]
[EndTime "11:29:14 PDT"]
[Termination "Nachsueb won on time"]

1. e4 {[%clk 0:03:00.9]} 1... c5 {[%clk 0:02:59.6]} 2. Nc3 {[%clk 0:03:00.4]}
2... e6 {[%clk 0:03:00.1]} 3. f4 {[%clk 0:02:59.6]} 3... Nc6 {[%clk 0:03:00.2]}
4. Bb5 {[%clk 0:02:57.7]} 4... Nd4 {[%clk 0:02:59.8]} 5. Nf3 {[%clk 0:02:52.7]}
5... a6 {[%clk 0:02:59.4]} 6. Bd3 {[%clk 0:02:44.9]} 6... Nc6 {[%clk 0:02:56.3]}
7. O-O {[%clk 0:02:36.5]} 7... b5 {[%clk 0:02:35.5]} 8. b3 {[%clk 0:02:35.9]}
8... d6 {[%clk 0:02:33.4]} 9. Bb2 {[%clk 0:02:35.1]} 9... Nf6 {[%clk 0:02:33.1]}
10. a4 {[%clk 0:02:18.8]} 10... b4 {[%clk 0:02:20.4]} 11. Ne2 {[%clk 0:02:17.9]}
11... Be7 {[%clk 0:02:19.3]} 12. h3 {[%clk 0:02:07.7]} 12... Qc7 {[%clk
0:02:12.7]} 13. Qe1 {[%clk 0:01:28.9]} 13... Bb7 {[%clk 0:02:03.2]} 14. e5
{[%clk 0:01:27.6]} 14... dxe5 {[%clk 0:01:55.2]} 15. fxe5 {[%clk 0:01:25.4]}
15... Nd5 {[%clk 0:01:36]} 16. Ng3 {[%clk 0:01:17.9]} 16... Nf4 {[%clk
0:01:30.9]} 17. Be4 {[%clk 0:01:16.1]} 17... Ng6 {[%clk 0:01:29.6]} 18. Qe2
{[%clk 0:01:08.7]} 18... O-O {[%clk 0:01:16.1]} 19. Rae1 {[%clk 0:01:04.6]}
19... Rad8 {[%clk 0:01:06.3]} 20. Bxg6 {[%clk 0:00:52.7]} 20... hxg6 {[%clk
0:01:05.3]} 21. d3 {[%clk 0:00:49.4]} 21... Nd4 {[%clk 0:00:57]} 22. Bxd4 {[%clk
0:00:39.3]} 22... cxd4 {[%clk 0:00:57.9]} 23. Ne4 {[%clk 0:00:39.5]} 23... Rd7
{[%clk 0:00:43.7]} 24. Rf2 {[%clk 0:00:38.9]} 24... Rc8 {[%clk 0:00:43.4]} 25.
Ref1 {[%clk 0:00:37.2]} 25... Rf8 {[%clk 0:00:28.9]} 26. Nfg5 {[%clk 0:00:24.5]}
26... Bxg5 {[%clk 0:00:23.2]} 27. Nxg5 {[%clk 0:00:22.9]} 27... Rd5 {[%clk
0:00:19.8]} 28. Qg4 {[%clk 0:00:20.5]} 28... Qxe5 {[%clk 0:00:15.9]} 29. Rf5
{[%clk 0:00:15]} 29... exf5 {[%clk 0:00:15.4]} 30. Qh4 {[%clk 0:00:14.7]} 30...
Qe3+ {[%clk 0:00:10.1]} 31. Kh1 {[%clk 0:00:14.9]} 31... Re8 {[%clk 0:00:05.7]}
32. Qh7+ {[%clk 0:00:13.3]} 32... Kf8 {[%clk 0:00:06.2]} 33. h4 {[%clk
0:00:10.8]} 33... Qg3 {[%clk 0:00:03.5]} 34. Qh8+ {[%clk 0:00:08.7]} 34... Ke7
{[%clk 0:00:03.9]} 35. Qxg7 {[%clk 0:00:09]} 35... Qxh4+ {[%clk 0:00:03.5]} 36.
Nh3 {[%clk 0:00:09.3]} 36... Kd7 {[%clk 0:00:02.5]} 37. Qxf7+ {[%clk 0:00:08.4]}
37... Qe7 {[%clk 0:00:03]} 38. Qxg6 {[%clk 0:00:07]} 38... Rh8 {[%clk
0:00:03.5]} 39. Kg1 {[%clk 0:00:03.6]} 39... Rd6 {[%clk 0:00:03.1]} 40. Qxf5+
{[%clk 0:00:03.2]} 40... Re6 {[%clk 0:00:03.3]} 0-1

[Event "*** Titled Tuesday Blitz"]
[Site "Chess.com"]
[Date "2021.03.30"]
[Round "8"]
[White "VladDobrov"]
[Black "Pelopidass"]
[Result "1-0"]
[WhiteElo "2756"]
[BlackElo "2575"]
[TimeControl "180+1"]
[EndTime "11:29:17 PDT"]
[Termination "VladDobrov won by resignation"]

1. b3 {[%clk 0:02:55.8]} 1... Nf6 {[%clk 0:02:57.6]} 2. Bb2 {[%clk 0:02:54.6]}
2... d5 {[%clk 0:02:57.6]} 3. e3 {[%clk 0:02:52.3]} 3... c5 {[%clk 0:02:57.6]}
4. Nf3 {[%clk 0:02:51.7]} 4... Nc6 {[%clk 0:02:57.8]} 5. Bb5 {[%clk 0:02:51.1]}
5... Bd7 {[%clk 0:02:54.2]} 6. O-O {[%clk 0:02:45.9]} 6... e6 {[%clk 0:02:54.1]}
7. d3 {[%clk 0:02:45.4]} 7... a6 {[%clk 0:02:50.5]} 8. Bxc6 {[%clk 0:02:45]}
8... Bxc6 {[%clk 0:02:51.4]} 9. Nbd2 {[%clk 0:02:45.1]} 9... Bd6 {[%clk
0:02:48.3]} 10. Ne5 {[%clk 0:02:45.3]} 10... Qc7 {[%clk 0:02:47.9]} 11. f4
{[%clk 0:02:45.4]} 11... b5 {[%clk 0:02:26.4]} 12. Ndf3 {[%clk 0:02:40.3]} 12...
h6 {[%clk 0:02:15.8]} 13. Qe2 {[%clk 0:02:39.6]} 13... Bb7 {[%clk 0:02:15.3]}
14. a4 {[%clk 0:02:31.4]} 14... b4 {[%clk 0:02:11.1]} 15. c4 {[%clk 0:02:04.3]}
15... bxc3 {[%clk 0:02:04.2]} 16. Bxc3 {[%clk 0:02:04]} 16... d4 {[%clk
0:01:58.3]} 17. exd4 {[%clk 0:02:02.8]} 17... Nd5 {[%clk 0:01:58.8]} 18. Bd2
{[%clk 0:02:01.4]} 18... cxd4 {[%clk 0:01:56.7]} 19. Rac1 {[%clk 0:01:55]} 19...
Qb6 {[%clk 0:01:52.4]} 20. Nc4 {[%clk 0:01:53.8]} 20... Qd8 {[%clk 0:01:42.3]}
21. f5 {[%clk 0:01:39.9]} 21... O-O {[%clk 0:01:16.3]} 22. fxe6 {[%clk
0:01:38.5]} 22... Ne3 {[%clk 0:00:57.8]} 23. Bxe3 {[%clk 0:01:08.7]} 23... dxe3
{[%clk 0:00:58.7]} 24. Qxe3 {[%clk 0:01:07.8]} 24... Bd5 {[%clk 0:00:33.1]} 25.
exf7+ {[%clk 0:00:44.6]} 25... Rxf7 {[%clk 0:00:30.3]} 26. Nfe5 {[%clk
0:00:43.4]} 26... Rxf1+ {[%clk 0:00:28.7]} 27. Rxf1 {[%clk 0:00:42.8]} 27... Qe7
{[%clk 0:00:24.5]} 28. Nxd6 {[%clk 0:00:37.9]} 28... Qxd6 {[%clk 0:00:25.4]} 29.
d4 {[%clk 0:00:37.3]} 29... Rb8 {[%clk 0:00:24.5]} 30. Nc4 {[%clk 0:00:29.9]}
30... Qe6 {[%clk 0:00:20.6]} 31. Qxe6+ {[%clk 0:00:21.8]} 31... Bxe6 {[%clk
0:00:21.5]} 32. Rf3 {[%clk 0:00:21.7]} 32... Rb4 {[%clk 0:00:19]} 33. Rc3 {[%clk
0:00:20.6]} 33... Bd5 {[%clk 0:00:17.5]} 34. Kf2 {[%clk 0:00:19]} 34... Kf8
{[%clk 0:00:17.1]} 35. g3 {[%clk 0:00:19.2]} 35... Ke7 {[%clk 0:00:17.1]} 36.
Ke3 {[%clk 0:00:19.6]} 36... Bxc4 {[%clk 0:00:14.7]} 37. bxc4 {[%clk 0:00:18]}
37... Rxa4 {[%clk 0:00:15.1]} 38. c5 {[%clk 0:00:18.4]} 38... Ra2 {[%clk
0:00:15.1]} 39. d5 {[%clk 0:00:16.5]} 39... Rxh2 {[%clk 0:00:15.3]} 40. Kd4
{[%clk 0:00:14.5]} 40... Rh1 {[%clk 0:00:13.5]} 41. Re3+ {[%clk 0:00:12.7]}
41... Kd7 {[%clk 0:00:13.6]} 42. c6+ {[%clk 0:00:13.1]} 42... Kc7 {[%clk
0:00:14.1]} 43. Re7+ {[%clk 0:00:13.2]} 43... Kd8 {[%clk 0:00:13.1]} 44. Rxg7
{[%clk 0:00:12.8]} 44... Rd1+ {[%clk 0:00:08.1]} 45. Kc5 {[%clk 0:00:12.9]}
45... Ke8 {[%clk 0:00:07.4]} 46. d6 {[%clk 0:00:11.9]} 1-0

[Event "*** Titled Tuesday Blitz"]
[Site "Chess.com"]
[Date "2021.03.30"]
[Round "8"]
[White "Alexander_Zubov"]
[Black "Jumbo"]
[Result "1-0"]
[WhiteElo "2979"]
[BlackElo "2797"]
[TimeControl "180+1"]
[EndTime "11:29:19 PDT"]
[Termination "Alexander_Zubov won on time"]

1. d4 {[%clk 0:03:00.9]} 1... d5 {[%clk 0:03:00.6]} 2. c4 {[%clk 0:02:59.3]}
2... e6 {[%clk 0:03:01]} 3. Nf3 {[%clk 0:02:58.7]} 3... Nf6 {[%clk 0:03:00.2]}
4. Nc3 {[%clk 0:02:59.3]} 4... Nbd7 {[%clk 0:03:00.1]} 5. cxd5 {[%clk
0:02:58.8]} 5... exd5 {[%clk 0:03:01]} 6. Bf4 {[%clk 0:02:58.7]} 6... c6 {[%clk
0:02:59.8]} 7. e3 {[%clk 0:02:55.5]} 7... Bb4 {[%clk 0:02:57.4]} 8. Bd3 {[%clk
0:02:53.9]} 8... O-O {[%clk 0:02:53.7]} 9. O-O {[%clk 0:02:53.5]} 9... Re8
{[%clk 0:02:53.5]} 10. Qc2 {[%clk 0:02:52.8]} 10... h6 {[%clk 0:02:41.1]} 11. h3
{[%clk 0:02:47.5]} 11... Qe7 {[%clk 0:02:12.8]} 12. Rab1 {[%clk 0:02:39.5]}
12... a5 {[%clk 0:02:11.2]} 13. a3 {[%clk 0:02:37.9]} 13... Bxc3 {[%clk
0:02:06.1]} 14. Qxc3 {[%clk 0:02:28]} 14... Ne4 {[%clk 0:02:05.5]} 15. Qc2
{[%clk 0:02:27.7]} 15... a4 {[%clk 0:02:05]} 16. Rfe1 {[%clk 0:02:22.4]} 16...
Qe6 {[%clk 0:01:27.9]} 17. Rec1 {[%clk 0:01:59.2]} 17... Ra7 {[%clk 0:01:10.5]}
18. b4 {[%clk 0:01:56.1]} 18... axb3 {[%clk 0:01:10.1]} 19. Rxb3 {[%clk
0:01:55.9]} 19... Qe7 {[%clk 0:01:01.9]} 20. Qb2 {[%clk 0:01:16.1]} 20... Nd6
{[%clk 0:00:48.1]} 21. Bxd6 {[%clk 0:01:05.6]} 21... Qxd6 {[%clk 0:00:49]} 22.
Bf5 {[%clk 0:00:58.2]} 22... Qc7 {[%clk 0:00:21.4]} 23. Rb4 {[%clk 0:00:40.2]}
23... Nf6 {[%clk 0:00:17.8]} 24. Bd3 {[%clk 0:00:38.8]} 24... Qd6 {[%clk
0:00:11.8]} 25. a4 {[%clk 0:00:37]} 25... Qd8 {[%clk 0:00:10.6]} 26. Ne5 {[%clk
0:00:35.9]} 26... Qa5 {[%clk 0:00:11]} 27. Rc5 {[%clk 0:00:28.1]} 27... Qd8
{[%clk 0:00:10.2]} 28. Rc3 {[%clk 0:00:26.7]} 28... Nd7 {[%clk 0:00:09.9]} 29.
Nf3 {[%clk 0:00:23.3]} 29... Qa5 {[%clk 0:00:09.7]} 30. Bf5 {[%clk 0:00:20.5]}
30... Qc7 {[%clk 0:00:10.1]} 31. Bxd7 {[%clk 0:00:18.6]} 31... Bxd7 {[%clk
0:00:09.1]} 32. Rc5 {[%clk 0:00:18.7]} 32... Be6 {[%clk 0:00:08.7]} 33. Ne5
{[%clk 0:00:17.8]} 33... Rea8 {[%clk 0:00:09.2]} 34. Qc2 {[%clk 0:00:17.6]}
34... f6 {[%clk 0:00:05.6]} 35. Ng6 {[%clk 0:00:15.3]} 35... Kf7 {[%clk
0:00:02.9]} 36. Nf4 {[%clk 0:00:15.4]} 36... Qd6 {[%clk 0:00:03]} 37. a5 {[%clk
0:00:13.1]} 37... Kg8 {[%clk 0:00:02.7]} 38. Qb1 {[%clk 0:00:12.1]} 38... Bc8
{[%clk 0:00:02.8]} 39. Qg6 {[%clk 0:00:08.7]} 39... Qe7 {[%clk 0:00:02.2]} 40.
Ra4 {[%clk 0:00:04.4]} 40... Qf7 {[%clk 0:00:01.4]} 41. Qb1 {[%clk 0:00:03.9]}
1-0

[Event "*** Titled Tuesday Blitz"]
[Site "Chess.com"]
[Date "2021.03.30"]
[Round "8"]
[White "moro182"]
[Black "Zkid"]
[Result "0-1"]
[WhiteElo "2735"]
[BlackElo "2852"]
[TimeControl "180+1"]
[EndTime "11:29:21 PDT"]
[Termination "Zkid won by checkmate"]

1. d4 {[%clk 0:03:00.9]} 1... d5 {[%clk 0:02:59.8]} 2. c4 {[%clk 0:03:00.7]}
2... dxc4 {[%clk 0:02:59.9]} 3. e3 {[%clk 0:03:00.4]} 3... e6 {[%clk 0:02:59.7]}
4. Bxc4 {[%clk 0:02:57.1]} 4... Nf6 {[%clk 0:02:58.9]} 5. Nf3 {[%clk 0:02:57.1]}
5... c5 {[%clk 0:02:59.4]} 6. O-O {[%clk 0:02:54.8]} 6... a6 {[%clk 0:02:58.4]}
7. dxc5 {[%clk 0:02:46.3]} 7... Qxd1 {[%clk 0:02:56.9]} 8. Rxd1 {[%clk
0:02:47.2]} 8... Bxc5 {[%clk 0:02:57.1]} 9. a3 {[%clk 0:02:47.4]} 9... b5 {[%clk
0:02:55.6]} 10. Be2 {[%clk 0:02:44.9]} 10... Bb7 {[%clk 0:02:55.3]} 11. b4
{[%clk 0:02:44.8]} 11... Be7 {[%clk 0:02:51]} 12. Bb2 {[%clk 0:02:44.4]} 12...
O-O {[%clk 0:02:46.7]} 13. Nbd2 {[%clk 0:02:43.5]} 13... Nbd7 {[%clk 0:02:46.7]}
14. Nb3 {[%clk 0:02:39.4]} 14... Bd5 {[%clk 0:02:38.6]} 15. Na5 {[%clk
0:02:33.5]} 15... Nb6 {[%clk 0:02:37.7]} 16. Bd4 {[%clk 0:02:28.8]} 16... Nfd7
{[%clk 0:02:19.5]} 17. Rac1 {[%clk 0:02:19.3]} 17... Rac8 {[%clk 0:02:16.7]} 18.
Nd2 {[%clk 0:02:07.2]} 18... e5 {[%clk 0:02:12.9]} 19. Ba1 {[%clk 0:01:54.8]}
19... Rxc1 {[%clk 0:01:55.2]} 20. Rxc1 {[%clk 0:01:54.4]} 20... Rc8 {[%clk
0:01:55.8]} 21. Rxc8+ {[%clk 0:01:50.5]} 21... Nxc8 {[%clk 0:01:56.7]} 22. e4
{[%clk 0:01:45.6]} 22... Be6 {[%clk 0:01:55.8]} 23. g3 {[%clk 0:01:28.7]} 23...
Bg5 {[%clk 0:01:42.1]} 24. Nf3 {[%clk 0:01:10.9]} 24... Bc1 {[%clk 0:01:39.5]}
25. Nxe5 {[%clk 0:01:10.8]} 25... Nxe5 {[%clk 0:01:37.4]} 26. Bxe5 {[%clk
0:01:11.7]} 26... Bxa3 {[%clk 0:01:37.6]} 27. Bc3 {[%clk 0:01:09.8]} 27... Ne7
{[%clk 0:01:33]} 28. Kf1 {[%clk 0:01:06.3]} 28... f5 {[%clk 0:01:32.5]} 29. f3
{[%clk 0:01:04]} 29... fxe4 {[%clk 0:01:29.1]} 30. fxe4 {[%clk 0:01:04.9]} 30...
Kf7 {[%clk 0:01:28.6]} 31. Ke1 {[%clk 0:01:03.8]} 31... Bc1 {[%clk 0:01:28.7]}
32. Kd1 {[%clk 0:00:41.9]} 32... Be3 {[%clk 0:01:28.3]} 33. Ke1 {[%clk
0:00:27.4]} 33... Bd7 {[%clk 0:01:15.8]} 34. Bd2 {[%clk 0:00:24.4]} 34... Bb6
{[%clk 0:01:11.7]} 35. Bd3 {[%clk 0:00:15.9]} 35... Ng6 {[%clk 0:01:07.7]} 36.
Bc3 {[%clk 0:00:14.1]} 36... Bh3 {[%clk 0:01:06.5]} 37. Bf1 {[%clk 0:00:11.7]}
37... Bxf1 {[%clk 0:01:03.7]} 38. Kxf1 {[%clk 0:00:12.6]} 38... Bxa5 {[%clk
0:01:04]} 39. bxa5 {[%clk 0:00:12.9]} 39... Ne7 {[%clk 0:01:01.3]} 40. Ke2
{[%clk 0:00:12.7]} 40... Nc6 {[%clk 0:01:00.5]} 41. Bd2 {[%clk 0:00:10.5]} 41...
Ke6 {[%clk 0:00:59.1]} 42. Kd3 {[%clk 0:00:08.5]} 42... Ne5+ {[%clk 0:00:59.2]}
43. Kc3 {[%clk 0:00:05.6]} 43... Nf3 {[%clk 0:00:58.3]} 44. Be3 {[%clk
0:00:03.7]} 44... Nxh2 {[%clk 0:00:57.8]} 45. Kd4 {[%clk 0:00:03.5]} 45... Ng4
{[%clk 0:00:56.9]} 46. Bf4 {[%clk 0:00:02.5]} 46... Nf6 {[%clk 0:00:54.5]} 47.
Kc5 {[%clk 0:00:02.3]} 47... Nxe4+ {[%clk 0:00:54]} 48. Kb6 {[%clk 0:00:02.5]}
48... Kd7 {[%clk 0:00:54.6]} 49. Kxa6 {[%clk 0:00:02.4]} 49... Kc6 {[%clk
0:00:55.2]} 50. g4 {[%clk 0:00:02.7]} 50... b4 {[%clk 0:00:55.3]} 51. Ka7 {[%clk
0:00:03]} 51... b3 {[%clk 0:00:55.3]} 52. Be5 {[%clk 0:00:03.3]} 52... g6 {[%clk
0:00:55.5]} 53. a6 {[%clk 0:00:03]} 53... Nc5 {[%clk 0:00:51.8]} 54. Bd4 {[%clk
0:00:02.1]} 54... h5 {[%clk 0:00:46.9]} 55. gxh5 {[%clk 0:00:02.3]} 55... gxh5
{[%clk 0:00:47.8]} 56. Be5 {[%clk 0:00:02.7]} 56... h4 {[%clk 0:00:46.8]} 57.
Bf6 {[%clk 0:00:01.9]} 57... h3 {[%clk 0:00:46.9]} 58. Be5 {[%clk 0:00:02]}
58... h2 {[%clk 0:00:47.2]} 59. Bxh2 {[%clk 0:00:01.7]} 59... b2 {[%clk
0:00:47.6]} 60. Bg1 {[%clk 0:00:02.4]} 60... b1=Q {[%clk 0:00:47.1]} 61. Bxc5
{[%clk 0:00:03.3]} 61... Kxc5 {[%clk 0:00:46.3]} 62. Ka8 {[%clk 0:00:03.1]}
62... Kc6 {[%clk 0:00:46.3]} 63. a7 {[%clk 0:00:02.3]} 63... Qb7# {[%clk
0:00:44.9]} 0-1

[Event "*** Titled Tuesday Blitz"]
[Site "Chess.com"]
[Date "2021.03.30"]
[Round "8"]
[White "BursaBBSatranc"]
[Black "Lion-Al-Messi"]
[Result "0-1"]
[WhiteElo "2601"]
[BlackElo "2501"]
[TimeControl "180+1"]
[EndTime "11:29:23 PDT"]
[Termination "Lion-Al-Messi won on time"]

1. d4 {[%clk 0:03:00.9]} 1... d5 {[%clk 0:02:07.2]} 2. Nf3 {[%clk 0:03:00.4]}
2... Nf6 {[%clk 0:02:04.8]} 3. Bf4 {[%clk 0:03:00.9]} 3... c5 {[%clk 0:02:04.7]}
4. e3 {[%clk 0:03:01.3]} 4... Nc6 {[%clk 0:02:04.8]} 5. c3 {[%clk 0:03:01.5]}
5... Qb6 {[%clk 0:02:03.9]} 6. Qc2 {[%clk 0:03:00.8]} 6... g6 {[%clk 0:02:03]}
7. Nbd2 {[%clk 0:03:00.4]} 7... Bf5 {[%clk 0:02:02.4]} 8. Qb3 {[%clk 0:02:58.6]}
8... c4 {[%clk 0:02:01.9]} 9. Qxb6 {[%clk 0:02:58.6]} 9... axb6 {[%clk
0:02:02.8]} 10. a3 {[%clk 0:02:59.5]} 10... Bg7 {[%clk 0:02:01.9]} 11. Be2
{[%clk 0:02:59.4]} 11... O-O {[%clk 0:02:00.6]} 12. O-O {[%clk 0:02:59.9]} 12...
b5 {[%clk 0:02:00.6]} 13. h3 {[%clk 0:02:59.3]} 13... Nd7 {[%clk 0:01:59.4]} 14.
Rac1 {[%clk 0:02:58.5]} 14... Nb6 {[%clk 0:01:58.8]} 15. Bd1 {[%clk 0:02:58.7]}
15... Bd3 {[%clk 0:01:55.2]} 16. Re1 {[%clk 0:02:58.6]} 16... Na4 {[%clk
0:01:55]} 17. Bxa4 {[%clk 0:02:57.9]} 17... bxa4 {[%clk 0:01:55.9]} 18. e4
{[%clk 0:02:57.8]} 18... e6 {[%clk 0:01:56.6]} 19. exd5 {[%clk 0:02:16.8]} 19...
exd5 {[%clk 0:01:57.5]} 20. Ne5 {[%clk 0:02:16.1]} 20... Nxe5 {[%clk 0:01:57.2]}
21. Bxe5 {[%clk 0:02:03.6]} 21... Ra6 {[%clk 0:01:57.5]} 22. Bxg7 {[%clk
0:01:48.9]} 22... Kxg7 {[%clk 0:01:58.4]} 23. Nf1 {[%clk 0:01:41.5]} 23... Rb6
{[%clk 0:01:57.5]} 24. Ne3 {[%clk 0:01:41.6]} 24... Rxb2 {[%clk 0:01:56.7]} 25.
Nxd5 {[%clk 0:01:40.6]} 25... Rb3 {[%clk 0:01:57.6]} 26. Re7 {[%clk 0:01:37.2]}
26... Rd8 {[%clk 0:01:54.7]} 27. Nf4 {[%clk 0:01:30.2]} 27... Kf8 {[%clk
0:01:49.9]} 28. Rc7 {[%clk 0:01:28.2]} 28... b5 {[%clk 0:01:48.3]} 29. Rb7
{[%clk 0:01:23.6]} 29... Rxa3 {[%clk 0:01:39]} 30. Rxb5 {[%clk 0:01:23.2]} 30...
Rb3 {[%clk 0:01:39.9]} 31. Ra5 {[%clk 0:01:20.9]} 31... a3 {[%clk 0:01:40.3]}
32. h4 {[%clk 0:01:07.5]} 32... Rdb8 {[%clk 0:01:36.7]} 33. Kh2 {[%clk
0:01:05.1]} 33... h6 {[%clk 0:01:33.8]} 34. Kg3 {[%clk 0:00:56.4]} 34... Kg8
{[%clk 0:01:32.2]} 35. f3 {[%clk 0:00:49.5]} 35... Kg7 {[%clk 0:01:30.6]} 36.
Ra7 {[%clk 0:00:49.2]} 36... R8b7 {[%clk 0:01:23.3]} 37. Ra5 {[%clk 0:00:44.6]}
37... Bb1 {[%clk 0:01:21.9]} 38. Nd5 {[%clk 0:00:34]} 38... a2 {[%clk
0:01:20.5]} 39. Nb4 {[%clk 0:00:30.7]} 39... Rb2 {[%clk 0:01:14]} 40. d5 {[%clk
0:00:21.6]} 40... Re7 {[%clk 0:01:12.5]} 41. d6 {[%clk 0:00:20.4]} 41... Ree2
{[%clk 0:01:10.6]} 42. Rg1 {[%clk 0:00:19.4]} 42... Red2 {[%clk 0:01:09.1]} 43.
Nd5 {[%clk 0:00:19.5]} 43... Rxd5 {[%clk 0:01:08.8]} 44. Rxd5 {[%clk 0:00:17.2]}
44... a1=Q {[%clk 0:01:09]} 45. d7 {[%clk 0:00:17.7]} 45... Rb8 {[%clk
0:01:07.9]} 46. d8=Q {[%clk 0:00:18]} 46... Rxd8 {[%clk 0:01:07.9]} 47. Rxd8
{[%clk 0:00:18.9]} 47... Qb2 {[%clk 0:01:08.1]} 48. Re1 {[%clk 0:00:14.8]} 48...
Bd3 {[%clk 0:01:05.4]} 49. Re7 {[%clk 0:00:13.1]} 49... Qxc3 {[%clk 0:01:04.2]}
50. Rdd7 {[%clk 0:00:13.7]} 50... Qf6 {[%clk 0:01:03.8]} 51. Rc7 {[%clk
0:00:13.8]} 51... Qd6+ {[%clk 0:01:00.6]} 52. Kf2 {[%clk 0:00:13.4]} 52... Qd4+
{[%clk 0:01:00.9]} 53. Kg3 {[%clk 0:00:13.4]} 53... Qd6+ {[%clk 0:00:59.5]} 54.
Kf2 {[%clk 0:00:13.4]} 54... Qd5 {[%clk 0:01:00.4]} 55. Red7 {[%clk 0:00:13.3]}
55... Qf5 {[%clk 0:00:55.5]} 56. g4 {[%clk 0:00:10.7]} 56... Qf4 {[%clk
0:00:55.2]} 57. Re7 {[%clk 0:00:04.3]} 57... g5 {[%clk 0:00:52.5]} 58. h5 {[%clk
0:00:04.2]} 58... Qh2+ {[%clk 0:00:52.3]} 59. Ke3 {[%clk 0:00:04.3]} 59... Qe2+
{[%clk 0:00:51.2]} 60. Kd4 {[%clk 0:00:04.2]} 60... Qf2+ {[%clk 0:00:51.5]} 61.
Kc3 {[%clk 0:00:01.7]} 61... Qxf3 {[%clk 0:00:51.2]} 62. Red7 {[%clk 0:00:02.6]}
62... Bf5+ {[%clk 0:00:50.8]} 0-1